Cogmind - Beta 16 *** ADVENTURER MODE // 2026.01.17 @ 11:06:32 // Winter2019/RPGLIKE Player: MrBruh Result: Self-destructed Performance ------------- Evolutions (4) 2000 Regions Visited (4) 800 Robots Destroyed (66) 330 Value Destroyed (2093) 2093 Prototype IDs (31) 620 Alien Tech Used (0) 0 Bonus (800) 800 TOTAL SCORE: 6643 Bonus ------- Registered with UFD 300 Met Optimus in HQ 500 Cogmind --------- Core Integrity 562/600 Matter 207/400 Energy 460/460 System Corruption 1% Temperature Cool (0) Movement Walking (123) Location -6/Factory Parts ------- > --- POWER (2) -------- Light Fission Core Fusion Compressor > --- PROPULSION (3) --- Improved Titanium Leg Flexi-carbon Leg Flexi-carbon Leg > --- UTILITY (7) ------ Improved Cooling System Experimental Sensor Array Advanced Signal Interpreter Terrain Scanner Armor Integrity Analyzer Force Field > --- WEAPON (3) ------- Light EM Pulse Cannon Hypervelocity Gauss Rifle Magnetic Acceleration Cannon > --- INVENTORY (5) ---- Stasis Canceller Focal Shield Peak State ------------ > --- POWER ------------ Angular Momentum Engine Light Angular Momentum Engine > --- PROPULSION ------- Improved Titanium Leg Flexi-carbon Leg Armored Leg > --- UTILITY ---------- Improved Cooling System Experimental Sensor Array Advanced Signal Interpreter Terrain Scanner Armor Integrity Analyzer Gun Armor > --- WEAPON ----------- Light EM Pulse Cannon Battle Rifle Subdweller Machine Gun Hypervelocity Gauss Rifle > --- INVENTORY -------- Stasis Canceller Focal Shield Force Field Heavy Flak Cannon [Rating: 69] Favorites ----------- Power Improved Ion Engine Engine Improved Ion Engine Power Core Light Fission Core Propulsion Aluminum Leg Leg Aluminum Leg Utility Terrain Scanner Device Terrain Scanner Processor Targeting Computer Protection Gun Armor Weapon Battle Rifle Energy Gun Riot Gun Energy Cannon Light EM Pulse Cannon Ballistic Gun Battle Rifle Ballistic Cannon Battle Cannon Launcher Guided EMP Blaster Build | -11 -10 -10 -9 -6 ------- Run | Yrd Mat Sub Scr Fac Slots Evolved 11 | 1 3 1 1 5 Power 1 | . . . . 1 Propulsion 2 | 1 . . 1 . Utility 6 | . 2 1 . 3 Weapon 2 | . 1 . . 1 Parts Attached 42 | 5 10 6 5 16 Power 6 | 1 1 . 1 3 Engine 4 | 1 1 . 1 1 Core 2 | . . . . 2 Reactor . | . . . . . Propulsion 8 | 2 . . 2 4 Treads . | . . . . . Leg 8 | 2 . . 2 4 Wheel . | . . . . . Hover . | . . . . . Flight . | . . . . . Utility 15 | 1 6 2 . 6 Device 10 | 1 5 . . 4 Storage . | . . . . . Processor 4 | . 1 1 . 2 Hackware . | . . . . . Protection 1 | . . 1 . . Artifact . | . . . . . Weapon 13 | 1 3 4 2 3 Energy Gun 3 | . 2 1 . . Energy Cannon 1 | . . . 1 . Ballistic Gun 4 | 1 . 2 1 . Ballistic Cannon 4 | . 1 1 . 2 Launcher 1 | . . . . 1 Special Weapon . | . . . . . Impact Weapon . | . . . . . Slashing Weapon . | . . . . . Piercing Weapon . | . . . . . Special Melee Weapon . | . . . . . Unidentified Prototypes 1 | . . . . 1 Parts Lost . | . . . . . Power . | . . . . . Propulsion . | . . . . . Utility . | . . . . . Weapon . | . . . . . Highest Loss Streak . | . . . . . To Critical Strikes . | . . . . . Average Backups 2 | 1 2 2 3 2 Power . | . . . . . Propulsion . | . . . . . Utility 2 | . 2 2 3 2 Weapon . | . . . . . Tool/Special . | . . . . . Unused Backups 6 | . 3 1 . 2 Power 3 | . 2 1 . . Propulsion . | . . . . . Utility 2 | . . . . 2 Weapon 1 | . 1 . . . Tool/Special . | . . . . . Average Slot Usage (%) 98 | . 99 96 99 97 Engine 9 | . 14 10 8 8 Core 1 | . . . . 4 Leg 22 | . 28 21 24 20 Device 17 | . 15 19 8 22 Processor 15 | . 12 19 16 13 Protection 3 | . . 2 8 4 Energy Gun 6 | . 13 10 3 . Energy Cannon 2 | . . . 4 5 Ballistic Gun 10 | . 7 1 18 13 Ballistic Cannon 6 | . 6 10 5 2 Peak Build Rating 69 | 5 11 25 36 69 Average Rating 32 | 3 8 14 32 63 On Entrance 15 | . 5 9 25 36 Avg Prop Armor Cover (%) 4 | . . . . 4 Naked Turns . | . . . . . Heaviest Build 51 | 6 14 24 34 51 Greatest Support 65 | 20 20 20 36 65 Greatest Overweight (x) 1 | . . 1 1 . Average Overweight (x) . | . . . . . Largest Inventory Capacity 5 | 2 3 3 3 5 Average Capacity 3 | 1 2 3 3 4 Most Carried 4 | 2 3 3 3 4 Average Carried 2 | 1 2 2 2 2 Final Capacity 5 | 2 3 3 3 5 Final Carried 3 | 2 3 3 3 2 Class Distribution -------------------- 47% | Skirmisher 30% | Gunner 22% | Mutant Dominant Class ---------------- Mutant | -10/Materials Skirmisher | -10/Subcaves Gunner | -9/Scraptown Skirmisher | -6/Factory Resources | -11 -10 -10 -9 -6 ----------- Run | Yrd Mat Sub Scr Fac Matter Collected 2541 | 310 353 795 80 1003 Remotely . | . . . . . Salvage Created 1894 | 159 593 321 . 821 Parts 140 | 12 34 28 6 60 Haulers Intercepted 2 | . 2 . . . Recyclers Shooed 2 | . . . . 2 Parts Field Recycled . | . . . . . Retrieved Matter . | . . . . . Parts Self-Destructed 19 | . . 19 . . Prevented . | . . . . . Parts Restored . | . . . . . Kills | -11 -10 -10 -9 -6 ------- Run | Yrd Mat Sub Scr Fac Combat Hostiles Destroyed 47 | 1 12 12 2 20 Guns 20 | 1 8 4 2 5 Cannons 20 | . 4 7 . 9 AOE 7 | . . 1 . 6 Classes Destroyed 15 | 3 3 3 1 5 Worker 2 | 1 . . . 1 Builder 1 | . 1 . . . Tunneler 4 | 3 1 . . . Hauler 2 | . 2 . . . Mechanic 1 | . . . . 1 Operator 1 | . . . . 1 Turret 2 | . . 2 . . Watcher 6 | . 3 . . 3 Swarmer 15 | . . 7 . 8 Grunt 19 | 1 12 2 . 4 Duelist 1 | . . . . 1 Hunter 1 | . . . . 1 Programmer 6 | . . . . 6 Subdweller 3 | . . 3 . . Scrapper 2 | . . . 2 . Best Kill Streak 4 | 4 3 4 2 4 Combat Bots Only 4 | 1 2 4 2 4 Max Kills in Single Turn 3 | 1 2 1 1 3 Gunslinging . | . . . . . Exploded 3 | . . 1 . 3 Melee . | . . . . . Uniques/NPCs Destroyed . | . . . . . Combat | -11 -10 -10 -9 -6 -------- Run | Yrd Mat Sub Scr Fac Hostile Shots Fired 187 | 6 38 52 10 81 Missed 55 | 1 13 14 2 25 Hits 132 | 5 25 38 8 56 Melee 3 | . . . . 3 Projectile 129 | 5 25 38 8 53 Critical Strikes 3 | . 1 1 . 1 Part Disruptions 1 | . . . . 1 Damage Taken 1653 | 41 270 493 133 716 Core 1311 | 35 221 393 107 555 Absorbed by Shields 138 | . . . . 138 Redirected to Core 1005 | 19 156 270 90 470 Ignored by Resistances 514 | 15 85 135 37 242 Regen/Repaired (Parts) 101 | . . . . 101 Core Remaining (%) 88 | 94 . . 82 . Volleys Fired 324 | 20 77 146 2 79 Largest 4 | 1 2 2 4 4 Hottest 144 | 20 70 83 144 144 Shots Fired 525 | 20 130 188 8 179 Gun 283 | 20 92 51 6 114 Cannon 242 | . 38 137 2 65 Launcher . | . . . . . Special . | . . . . . Kinetic 389 | 20 77 137 6 149 Thermal . | . . . . . Explosive . | . . . . . Electromagnetic 136 | . 53 51 2 30 Robot Hit Streak 25 | 12 25 20 22 16 Robot Miss Streak 4 | 1 3 3 1 4 Penetration Max 1 | . . . . 1 Secondary Targets 1 | . 1 . . . Max Gunslinging Chain 1 | . 1 . . . Shots Hit Robots 302 | 19 82 76 5 120 Core Hits 127 | 6 32 27 3 59 Critical Kills 4 | . . . . 4 Critical Parts Destroyed 10 | . . . . 10 Critical Strikes 17 | . 1 2 . 14 Destroy 14 | . . . . 14 Blast 3 | . 1 2 . . Melee Attacks . | . . . . . Impact . | . . . . . Slashing . | . . . . . Piercing . | . . . . . Sneak Attacks . | . . . . . Combat Hostiles . | . . . . . Follow-up Attacks . | . . . . . Damage Inflicted 5101 | 241 1299 908 93 2560 Guns 2426 | 241 949 322 56 858 Cannons 1908 | . 263 493 37 1115 Explosions 730 | . 87 93 . 550 Melee . | . . . . . Ramming 37 | . . . . 37 Kinetic 2849 | 241 605 493 56 1454 Thermal 730 | . 87 93 . 550 Explosive . | . . . . . Electromagnetic 1485 | . 607 322 37 519 Impact . | . . . . . Slashing . | . . . . . Piercing . | . . . . . Highest Corruption 1 | . . . . 1 Average Corruption 1 | . . . . 1 Corruption Purged . | . . . . . Corruption Blocked . | . . . . . Overload Shots . | . . . . . Overflow Damage 68 | . . 16 . 52 Projectiles 36 | . . 16 . 20 Explosions 32 | . . . . 32 Melee . | . . . . . Knockbacks 12 | . . 3 . 9 Impact . | . . . . . Kinetic 11 | . . 2 . 9 Secondary 1 | . . 1 . . Self-Inflicted Damage 75 | . . . . 75 Shots 2 | . . . . 2 Rammed . | . . . . . Targets Rammed 5 | . . . . 5 Kicked 5 | . . . . 5 Crushed . | . . . . . Highest Temperature 264 | . 84 . 264 78 Average Temperature 27 | . 24 . 157 21 Received Heat Transfer 406 | 30 183 54 90 49 Siege Activations . | . . . . . Martial Activations . | . . . . . Shielding Activations . | . . . . . Robots Disrupted . | . . . . . Combat Hostiles . | . . . . . Robots Corrupted . | . . . . . Combat Hostiles . | . . . . . Parts Fried 4 | . 2 1 . 1 Impact Corruptions . | . . . . . Robots Melted . | . . . . . Combat Hostiles . | . . . . . Parts Melted 1 | . . . 1 . Heat Transferred 650 | . 150 50 . 450 Parts Sabotaged . | . . . . . Parts Stolen . | . . . . . Parts Stripped . | . . . . . Power Chain Reactions 6 | . 2 1 . 3 Alert | -11 -10 -10 -9 -6 ------- Run | Yrd Mat Sub Scr Fac Maximum Alert Level . | . . . . . Low Security (%) 100 | 100 100 . . 100 Level 1 . | . . . . . Level 2 . | . . . . . Level 3 . | . . . . . Level 4 . | . . . . . Level 5 . | . . . . . High Security . | . . . . . Max Security . | . . . . . Peak Influence 196 | 15 68 . . 196 Initial 8 | . 8 . . . Average 18 | 3 14 . . 21 Influence Increases 1686 | 40 466 465 . 715 Destroy 0b10 Robot/C 880 | 20 240 220 . 400 Destroy 0b10 Robot/NC 85 | 20 35 . . 30 Destroy Leader 196 | . 70 20 . 106 Successful Hack 91 | . 33 . . 58 Disable Machine 81 | . 36 . . 45 Destroy Structure 83 | . 37 . . 46 Lose Combat Pursuer 270 | . 15 225 . 30 Influence Decreases 1578 | 25 481 465 . 607 Entered New Map 7 | . 7 . . . Time Decay 1571 | 25 474 465 . 607 Squads Dispatched 16 | . 4 . . 12 Investigation 6 | . 4 . . 2 Extermination 6 | . . . . 6 Reinforcement 1 | . . . . 1 Assault . | . . . . . Garrison 3 | . . . . 3 Intercept . | . . . . . Searches Triggered . | . . . . . Construction Impeded 1 | . . . . 1 Haulers Reinforced . | . . . . . Active Scanning Responses . | . . . . . Cargo Convoy Interrupts . | . . . . . Stealth | -11 -10 -10 -9 -6 --------- Run | Yrd Mat Sub Scr Fac Distress Signals . | . . . . . Communications Jammed . | . . . . . Distress Signals . | . . . . . Times Spotted 65 | 1 18 12 8 26 Peak Tracking Total 5 | 1 3 5 3 3 Tactical Retreats 7 | . 1 4 . 2 Traps | -11 -10 -10 -9 -6 ------- Run | Yrd Mat Sub Scr Fac Traps Triggered 10 | . 3 3 . 4 Indirectly . | . . . . . Trap Hack Attempts . | . . . . . Triggered . | . . . . . Disarmed . | . . . . . Reprogrammed . | . . . . . Reused . | . . . . . Traps Extracted . | . . . . . Installed . | . . . . . Triggered . | . . . . . Machines | -11 -10 -10 -9 -6 ---------- Run | Yrd Mat Sub Scr Fac Machines Disabled 10 | . 4 1 . 5 Max in Single Turn 4 | . 2 1 . 4 Machines Repaired . | . . . . . Machines Dismantled . | . . . . . Machines Sabotaged . | . . . . . Overloaded Fab Kills . | . . . . . Hacking | -11 -10 -10 -9 -6 --------- Run | Yrd Mat Sub Scr Fac Machines Accessed 32 | . 9 2 9 12 Terminals 16 | . 8 . . 8 Fabricators . | . . . . . Repair Stations 2 | . . . . 2 Recycling Units 2 | . 1 . . 1 Scanalyzers . | . . . . . Garrison Access 1 | . . . . 1 Total Hacks 140 | . 35 13 60 32 Successful 111 | . 23 13 60 15 Failed 28 | . 11 . . 17 Catastrophic 2 | . . . . 2 Database Lockouts 1 | . 1 . . . Manual 13 | . 4 . . 9 Terminals 57 | . 34 . . 23 Fabricators . | . . . . . Repair Stations 5 | . . . . 5 Recycling Units 3 | . 1 . . 2 Scanalyzers . | . . . . . Garrison Access 2 | . . . . 2 Terminal Hacks 102 | . 22 13 60 7 Record 77 | . 5 12 59 1 Robot Analysis 2 | . 1 . . 1 Prototype ID Bank 5 | . 4 . . 1 Open DSF 1 | . . . . 1 Branch Access Points 1 | . 1 . . . Emergency Access Points 1 | . 1 . . . Machine Index 1 | . 1 . . . Alert Level 2 | . 1 . . 1 Locate Traps 1 | . 1 . . . Dispatch Records 2 | . 2 . . . Surveillance Status 1 | . 1 . . . Patrol Status 1 | . 1 . . . Hauler Manifests 3 | . 2 . . 1 Registered Components 1 | . 1 . . . Registered Prototypes 1 | . . . . 1 Proto ID Catalog 2 | . . 1 1 . Fabricator Hacks . | . . . . . Repair Station Hacks 4 | . . . . 4 Scan Component 2 | . . . . 2 Repair 2 | . . . . 2 Recycling Unit Hacks 3 | . 1 . . 2 Report Inventory 2 | . 1 . . 1 Retrieve Matter 1 | . . . . 1 Scanalyzer . | . . . . . Garrison Access Hacks . | . . . . . Unauthorized Hacks 2 | . . . . 2 Terminals 2 | . . . . 2 Botnet 2 | . . . . 2 Fabricators . | . . . . . Repair Stations . | . . . . . Recycling Units . | . . . . . Scanalyzers . | . . . . . Garrison Access . | . . . . . Data Cores Recovered 1 | . . . . 1 Used . | . . . . . Hacking Detections 19 | . 8 . . 11 Full Trace Events 10 | . 8 . . 2 Feedback Events . | . . . . . Feedback Blocked . | . . . . . Robot Schematics Acquired . | . . . . . Robots Built . | . . . . . Authchips . | . . . . . Time . | . . . . . Total Robot Build Rating . | . . . . . Part Schematics Acquired . | . . . . . Parts Built . | . . . . . Authchips . | . . . . . Time . | . . . . . Total Part Build Rating . | . . . . . Part Studies Acquired . | . . . . . Parts Repaired 2 | . . . . 2 Time 60 | . . . . 60 Parts Recycled . | . . . . . Recycled Matter . | . . . . . Retrieved Matter . | . . . . . Retrieved Components . | . . . . . Parts Scanalyzed . | . . . . . Part Schematics Acquired . | . . . . . Parts Damaged . | . . . . . Bothacking | -11 -10 -10 -9 -6 ------------ Run | Yrd Mat Sub Scr Fac Used RIF Installer . | . . . . . Robots Hacked . | . . . . . Non-combat . | . . . . . Combat . | . . . . . Robot Hacks Applied . | . . . . . Relay Couplers Released . | . . . . . Fabnet Peak Effective % . | . . . . . Robots Rewired . | . . . . . Allies Hacked . | . . . . . Hacks Repelled . | . . . . . Allies | -11 -10 -10 -9 -6 -------- Run | Yrd Mat Sub Scr Fac Total Allies . | . . . . . Largest Group . | . . . . . Highest-Rated Group . | . . . . . Highest-Rated Ally . | . . . . . Total Orders . | . . . . . Ally Attacks . | . . . . . Total Damage . | . . . . . Kills . | . . . . . Allies Corrupted . | . . . . . Allies Melted . | . . . . . Intel | -11 -10 -10 -9 -6 ------- Run | Yrd Mat Sub Scr Fac Active Infowar (turns) 10014 | . 1350 3168 2183 3313 Sensors 5752 | . 25 2417 . 3310 Terrain 8779 | . 214 3069 2183 3313 Structural 104 | . 104 . . . Seismic 1120 | . 1021 99 . . Robot Analysis Total 2 | . 1 . . 1 Derelict Logs Recovered 1 | . . . 1 . Drone Launches . | . . . . . Drone Recoveries . | . . . . . Exploration | -11 -10 -10 -9 -6 ------------- Run | Yrd Mat Sub Scr Fac Turns Passed 10473 | 128 1681 3168 2183 3313 Spaces Moved 7041 | 75 1135 2225 1735 1871 Core 23 | 23 . . . . Treads . | . . . . . Legs 7018 | 52 1135 2225 1735 1871 Wheels . | . . . . . Hover . | . . . . . Flight . | . . . . . Fastest Speed 50 | 50 120 120 120 120 Average Speed 122 | 98 120 123 124 122 Slowest Speed 190 | 120 120 190 190 125 Overloaded Moves . | . . . . . Propulsion Burnouts . | . . . . . Robots Hopped . | . . . . . Potential Cave-ins . | . . . . . Cave-ins Triggered . | . . . . . Exploration Rate (%) 64 | 5 98 93 94 32 Regions Visited 4 Branch Regions 2 Pre-discovered Areas 1 | . . 1 . . Known Exits Taken 2 | . . 1 1 . Unknown Exits Taken 2 | 1 1 . . . Scrap Searched 11 | . . 5 6 . Spaces Dug 14 | . . 6 . 8 Terrain Destroyed 115 | . 55 10 1 49 Melee . | . . . . . Projectile 19 | . . 7 1 11 AOE 93 | . 55 3 . 35 Terrain Rammed . | . . . . . Walls Destroyed . | . . . . . Machines Disabled . | . . . . . Actions | -11 -10 -10 -9 -6 --------- Run | Yrd Mat Sub Scr Fac Total 8378 | 108 1325 2450 1751 2744 Wait 835 | 4 76 44 . 711 Move 7037 | 74 1134 2224 1734 1871 Hop . | . . . . . Pick Up 21 | 5 6 2 3 5 Fast Attach 25 | 2 5 4 4 10 Attach 11 | 3 1 1 . 6 Detach 3 | . . . . 3 Swap 23 | . 5 6 1 11 Drop 34 | . 9 4 7 14 Fire 324 | 20 77 146 2 79 Melee . | . . . . . Ram . | . . . . . Kick 5 | . . . . 5 Crush . | . . . . . Escape Stasis . | . . . . . Rewire . | . . . . . Trap . | . . . . . Miscellaneous 60 | . 12 19 . 29 Route ------- -11/Scrapyard -10/Materials (discovered 6 exits: [*Mat x3] / *Min x2 / *Sub) -10/Subcaves (discovered 4 exits: *Mat x2 / [*Rec] / *Scr) -9/Scraptown (discovered 2 exits: *Fac x2) -6/Factory (discovered 4 exits: *Fac x2 / *Low x2) History --------- Turn | Location | Event 2 | -11/Scrapyard | Met Revision 17 17 | -11/Scrapyard | Upgraded with Propulsion slot (x1) 83 | -11/Scrapyard | Discovered new exit (range 8) 129 | -11/Scrapyard | Entered Materials 129 | -10/Materials | Discovered new exit (range 15) 130 | -10/Materials | Met a group of wandering Federalists 202 | -10/Materials | Upgraded with Weapon slot (x1) 238 | -10/Materials | Upgraded with Utility slot (x1) 302 | -10/Materials | Build established: Mutant 352 | -10/Materials | Identified exit to Mines 465 | -10/Materials | Discovered new exit (range 8) 822 | -10/Materials | Discovered new exit (range 3) 901 | -10/Materials | Discovered new exit (range 12) 1155 | -10/Materials | Discovered new exit (range 10) 1354 | -10/Materials | Reached level 2 1631 | -10/Materials | Central database locked down 1796 | -10/Materials | Upgraded with Utility slot (x1) 1810 | -10/Materials | Entered Subcaves 1811 | -10/Subcaves | Continued accompanying wandering Federalists (4) 2054 | -10/Subcaves | Lost 5 allies 2088 | -10/Subcaves | Reached level 3 2121 | -10/Subcaves | Build established: Skirmisher 2224 | -10/Subcaves | Upgraded with Utility slot (x1) 2623 | -10/Subcaves | Discovered new exit (range 17) 2677 | -10/Subcaves | Shifting Twisted Machinery released Riot Gun 2704 | -10/Subcaves | Shifting Twisted Machinery released Sub. Power Source 2807 | -10/Subcaves | Discovered new exit (range 13) 2825 | -10/Subcaves | Identified exit to Materials 2913 | -10/Subcaves | Discovered exit to Materials (range 12) 2968 | -10/Subcaves | Visited Clippyterm 2971 | -10/Subcaves | Learned location of Deep Caves (-7) 2971 | -10/Subcaves | Learned Research security intel 3366 | -10/Subcaves | Identified exit to Scraptown 3876 | -10/Subcaves | Disturbed a concealed Subdweller 4223 | -10/Subcaves | Visited 4L-MR0's lab 4235 | -10/Subcaves | Found Gun Armor 4237 | -10/Subcaves | Attached Gun Armor, gained temporary slots: Weapon x2 4462 | -10/Subcaves | A swath of the cavern ceiling suddenly collapsed 4517 | -10/Subcaves | Build established: Mutant 4978 | -10/Subcaves | Entered Scraptown 4980 | -9/Scraptown | Reached level 4 5044 | -9/Scraptown | Build established: Gunner 5184 | -9/Scraptown | Upgraded with Propulsion slot (x1) 5283 | -9/Scraptown | Visited Symbiants 5361 | -9/Scraptown | Visited Cave Peace 5404 | -9/Scraptown | Visited Cyclists 5767 | -9/Scraptown | Scanned Subdweller tech in exchange for log data 5770 | -9/Scraptown | Learned 12 Factory zone layouts 5788 | -9/Scraptown | Discovered new exit (range 5) 5796 | -9/Scraptown | Identified exit to Factory 5921 | -9/Scraptown | Visited Red Mages 5970 | -9/Scraptown | Visited The Evicted 6015 | -9/Scraptown | Visited Fellowship of the Rings 6050 | -9/Scraptown | Visited IN-MT5's Study 6099 | -9/Scraptown | Visited UFD Registry 6099 | -9/Scraptown | Registered with UFD as "Ioncycle" 6128 | -9/Scraptown | Visited Junk Repository 6170 | -9/Scraptown | Visited Curators Association 6214 | -9/Scraptown | Visited Science Guys 6440 | -9/Scraptown | Visited Derelict Rescue Squad 6605 | -9/Scraptown | Visited DA-N13 Charitable Foundation 6625 | -9/Scraptown | Found DCF Scrap (30 items) 6716 | -9/Scraptown | Visited Supply Room 6750 | -9/Scraptown | Discovered exit to Factory (range 5) 6872 | -9/Scraptown | Visited Science Testing Area 6893 | -9/Scraptown | Visited Infowarlord's Domain 6902 | -9/Scraptown | Found Exp. Sensor Array 6928 | -9/Scraptown | Visited Scrap Suit Storage 7045 | -9/Scraptown | Met Optimus 7045 | -9/Scraptown | Accepted into 0bPrime 7147 | -9/Scraptown | Civil war broke out across Scraptown 7161 | -9/Scraptown | Entered Factory 7162 | -6/Factory | Identified exit to Factory 7163 | -6/Factory | Reached level 5 7163 | -6/Factory | Reached level 6 7163 | -6/Factory | Reached level 7 7163 | -6/Factory | Reached level 8 7163 | -6/Factory | Reached level 9 7163 | -6/Factory | Reached level 10 7163 | -6/Factory | Reached level 11 7163 | -6/Factory | Reached level 12 7163 | -6/Factory | Reached level 13 7163 | -6/Factory | Reached level 14 7163 | -6/Factory | Reached level 15 7164 | -6/Factory | Upgraded with Power slot (x1) 7164 | -6/Factory | Upgraded with Utility slot (x1) 7165 | -6/Factory | Upgraded with Utility slot (x1) 7351 | -6/Factory | Repaired Corrupted Lgt. Angular Momentum Engine 7455 | -6/Factory | Build established: Skirmisher 8163 | -6/Factory | Discovered exit to Factory (range 8) 9147 | -6/Factory | Garrison activated, responded to threat 9195 | -6/Factory | Discovered new exit (range 19) 9533 | -6/Factory | Discovered new exit (range 5) 9553 | -6/Factory | Identified exit to Lower Caves 9579 | -6/Factory | Reached level 16 9584 | -6/Factory | Upgraded with Utility slot (x1) 9584 | -6/Factory | Upgraded with Weapon slot (x1) 10003 | -6/Factory | Build established: Gunner 10177 | -6/Factory | Repaired Hyp. Gauss Rifle 10357 | -6/Factory | Reached level 17 10474 | -6/Factory | Self-destructed Last Messages --------------- A-15 Conveyor 3x Antimatter Cannon 4x Gravity Neutralizer 1x Imp. Cesium-ion Thruster (2 escorts) A-15 Conveyor 3x Angular Momentum Engine 10358_ U-05 Engineer builds a Wall. 10363_ U-05 Engineer lays Concrete. 10376_ K-01 Serf cleans the Construction Platform. 10388_ K-01 Serf cleans the Assembly Bed. 10422_ Connecting with Terminal... 10435_ K-01 Serf cleans the Fusion Modulator. 10451_ HV Slug penetrates Wall. 10451_ HV Slug penetrates K-01 Serf. 10452_ K-01 Serf cleans the Fusion Modulator. 10453_ HV Slug penetrates Wall. 10453_ HV Slug penetrates W-25 Informer. 10453_ HV Slug penetrates Wall. [Achievement: 5k Club] Map ----- +----------------------------------------------------+ | # """"""" #####+## #### """ | | # """"""" ## # ##### **= S"? | | + """"""" #??"""?# ####? **= ? ? | | # """"""" ## """ # ###?# ** ? | | # ## """ # #?#?# ? ?? ? | | # ## ? # ##?#?####?##?### | | # ########/##+######?# #?#??####???#??? | | # # [ * #?# ##???###??##?### | | + + ### ####?##?####?### | | ############## """" """" """" ## ## #?######???? | | ###???####??## """" """" """" + " # ? ???? | | ????###??#?### """" """" """" ## #? ???" ?? ?? | | ??#??#####?### """" """" """" ### ## ?????"?????? | | ##???##?#?##?# """" """" """" ### ##? "?"?" ? ???? | | ?#?#??##?#?### """" """" """" + +? ??? # | | ?#?????#?##?## ######? ? "????? ?? | | ????#??#####?#######################? ??"?? ? ??? | | ??#???#???#### ### """"" #####?# ??"?"? ???# | | ???#####?###?# ### ""T"" ##?##?# ?? ????# | | ???????#####?# + ####### ??????# | | ??##???#?#??## ### ####### ?????# | | ?????????????# ?? ### ####?## ???????# | | ????????????#?# #### """ #?#####w###?##?????? | | ???????? ?? ??#? ?#### """ ####### ######??????? | | ???????????? ? #### """ ####### ? ?? ????? | | ??????????""" ? #### @ ####### ? ? | | ????????? ??"?# ? #### """ ####### | | """ """ """ # ?#?## """ /t | | # #### """ ##############??????? | | # ?### ########??#?##??????? | | ############### ? #### ! ######?##?#??##?????? | | #?# ### ?### #??#?#??##????#?????? | | ### """# ?# ######?###????#?????? | | # """# ?? #######+## ? ? ???????? | | #### """# ??? ? ? ? ? ???????? | | ???# + ? ? ? ? ?? ??????????? | | ???# """# ??? ? ? ""?""? ??????????? | | ???# """# ??? ??####?### """""" ??????????? | | ???# """# ?? ?#?#??#####???"""?"???????????? | | ???# ## ?????#?? ?? ?""""?? ??????????? | | ???########### ??????? ? ??# ?? ? ????????????? | | ?????????????# ???????????? #???????????????????? | | ?????????????# ?????????????????????????????????? | | ?????????????# ??????????? ?????????????????????? | | ?????????????# ?????????????????????????????????? | | ?????????????# ?????????????????????????????????? | | ????????########?????????????????????????????????? | | ????????# ?????????????????????????????????? | | ????????# """"?????????????????????????????????? | | ????????# ?????????????????????????????????? | +----------------------------------------------------+ Best States ------------- Heat Dissipation 79 Energy Generation 38 Energy Capacity 660 Matter Stores 400 Matter Capacity 400 Sight Range 20 Robot Scan Range 38 Terrain Scan Range 14 Terrain Scan Density 310 Armor Coverage 60 Resistance: KI 20 Resistance: TH 20 Resistance: EX 20 Resistance: EM 20 Resistance: I 20 Resistance: S 20 Resistance: P 20 Evasion (%) 55 Targeting Accuracy 5 Armor Integrity Analysis 30 Offensive Hacking 10 Item Schematics ----------------- None Robot Schematics ------------------ None Fabricated ------------ Nothing Repaired ---------- Lgt. Angular Momentum Engine | 93% | -6/Factory | Corrupted Hyp. Gauss Rifle | 30% | -6/Factory Studied --------- None Alien Tech Used ----------------- None Achievements -------------- 5k Club Bumper Bots Civilization 2243 Crack Shot For Emergencies Only I Spy Librarian Link The Feds Loot Pinata Made in Tau Ceti IV Mistaken Identity Novice Programmer One Hack Too Far Organ Harvest Overwhelming Part-time Mechanic Please Form A Line Risk Taker Serviceable Loadout Shopping List Strength In Numbers Troublemaker True Hacker Uncivil War Challenges ------------ None RPGLIKE | -11 -10 -10 -9 -6 --------- Run | Yrd Mat Sub Scr Fac Levels Raised 16 | . 1 1 1 13 XP Earned 28011 | 4100 1785 2200 1049 18877 XP Spent 22270 | 1475 3115 1430 800 15450 Upgrades 48 | 6 9 3 1 29 Power Slot 1 | . . . . 1 Propulsion Slot 2 | 1 . . 1 . Utility Slot 6 | . 2 1 . 3 Weapon Slot 2 | . 1 . . 1 Energy Storage 6 | . 1 . . 5 Matter Storage 2 | . . . . 2 Mass Support 1 | . . . . 1 Inventory Capacity 5 | 2 1 . . 2 Sight Range 4 | 1 . . . 3 Sensor Range 9 | 2 2 . . 5 Terrain Scan Density 3 | . 2 1 . . Ranged Accuracy 3 | . . . . 3 KI Damage % 1 | . . . . 1 TH Damage % 2 | . . 1 . 1 EX Damage % 1 | . . . . 1 Protomatter Created 656 | . 181 157 66 252 Integrity Restored 1273 | . 243 406 . 624 Core 1273 | . 243 406 . 624 Protomatter Decayed 233 | . 99 56 43 35 Game ------ Seed MultitargetingNovaMask Manual? 0 Play Time 01:56:24 Cumulative 1.9 hours Start 2026.01.17 @ 00:48:59 End 2026.01.17 @ 11:06:32 Sessions 4 Manual Loads 0 Difficulty Adventurer Special Mode Winter2019/RPGLIKE Game No. 1 Rogue 0 Adventurer 1 Explorer 0 Win Type - Total 0 Types 0/0/0/0/0/0/0/0/0/0 Lore% 9 Gallery% 3 Achievement% 5 Wizard Run 0 Options --------- Layout 0 ASCII 0 Keyboard 0 Movement Mouse Keybinds 0 Fullscreen 2 Font 24/Smallcaps Map View 76x50 Zoom Use 0% Tactical HUD 1 Map Filters NONE Filters NONE Steam 1 RUN: e5099d18-90d5-43e1-a429-542e42a88f13